Workbook

Sheet ГЗ
A1: Информация о реализации территориальной программы государственных гарантий бесплатного оказания гражданам медицинской помощи в Архангельской области за 9 месяцев 2024 года в части областного бюджета.
C2: территориальной программы государственных гарантий бесплатного оказания гражданам медицинской помощи (областной бюджет)
A3: № п/п | B3: Наименование медицинской организации, участвующей в реализации ТП ГГ | C3: Медицинская помощь в условиях круглосуточного стационара | O3: Медицинская помощь в амбулаторных условиях | AG3: Медицинская помощь в условиях дневного стационара | AM3: Скорая медицинская помощь | AS3: Паллитативная медицинская помощь в стационарных условиях | AY3: Итого стоимость (областной бюджет)
C5: случаи госпитализации (в т.ч ВМП) | I5: из них случаи госпитализации по ВМП | O5: посещения с профилактической целью (вкл. паллиативные) | U5: из них посещения по паллиативной медицинской помощи | V5: план | AA5: обращения в связи с заболеванием (вкл. стомат.) | AB5: план | AG5: случаи лечения | AM5: количество вызовов | AS5: койко-дни
C6: объем медицинской помощи | D6: план | F6: стоимость | I6: объем медицинской помощи | J6: план | L6: стоимость | O6: объем медицинской помощи | P6: план | R6: стоимость | U6: объем медицинской помощи | V6: план | X6: стоимость | AA6: объем медицинской помощи | AB6: план | AD6: стоимость | AG6: объем медицинской помощи | AH6: план | AJ6: стоимость | AM6: объем медицинской помощи | AN6: план | AP6: стоимость | AS6: объем медицинской помощи | AT6: план | AV6: стоимость
C7: утверждено на 2024 год | D7: выполнено в 2024 году | E7: % | F7: утверждено на 2024 год | G7: выполнено в 2024 году | H7: % | I7: утверждено на 2024 год | J7: выполнено в 2024 году | K7: % | L7: утверждено на 2024 год | M7: выполнено в 2024 году | N7: % | O7: утверждено на 2024 год | P7: выполнено в 2024 году | Q7: % | R7: утверждено на 2024 год | S7: выполнено в 2024 году | T7: % | U7: утверждено на 2024 год | V7: выполнено в 2024 году | W7: % | X7: утверждено на 2024 год | Y7: выполнено в 2024 году | Z7: % | AA7: утверждено на 2024 год | AB7: выполнено в 2024 году | AC7: % | AD7: утверждено на 2024 год | AE7: выполнено в 2024 году | AF7: % | AG7: утверждено на 2024 год | AH7: выполнено в 2024 году | AI7: % | AJ7: утверждено на 2024 год | AK7: выполнено в 2024 году | AL7: % | AM7: утверждено на 2024 год | AN7: выполнено в 2024 году | AO7: % | AP7: утверждено на 2024 год | AQ7: выполнено в 2024 году | AR7: % | AS7: утверждено на 2024 год | AT7: выполнено в 2024 году | AU7: % | AV7: утверждено на 2024 год | AW7: выполнено в 2024 году | AX7: % | AY7: утверждено на 2024 год | AZ7: выполнено в 2024 году | BA7: %
A8: 1 | B8: ГБУЗ АО «Вельская ЦРБ» | C8: 196 | D8: 152 | E8: =D8/C8 -> 0.7755102041 | F8: 25745.28 | G8: 21129.76481 | H8: =G8/F8 -> 0.8207238302 | O8: 10130 | P8: 6821 | Q8: =P8/O8 -> 0.6733464956 | R8: 10321.19 | S8: 6922.93953 | T8: =S8/R8 -> 0.6707501296 | U8: 720 | V8: 309 | W8: =V8/U8 -> 0.4291666667 | X8: 1368.72 | Y8: 520.12647 | Z8: =Y8/X8 -> 0.3800094029 | AA8: 1630 | AB8: 1150 | AC8: =AB8/AA8 -> 0.7055214724 | AD8: 4359.2 | AE8: 3081.44855 | AF8: =AE8/AD8 -> 0.7068839581 | AG8: 0 | AH8: 0 | AM8: 500 | AN8: 349 | AO8: =AN8/AM8 -> 0.698 | AP8: 1805.01 | AQ8: 1312.48481 | AR8: =AQ8/AP8 -> 0.7271343704 | AS8: 5940 | AT8: 4800 | AU8: =AT8/AS8 -> 0.8080808081 | AV8: 25470.95 | AW8: 21344.3687 | AX8: =AW8/AV8 -> 0.8379887166 | AY8: =F8+R8+AD8+AJ8+AP8+AV8 -> 67701.63 | AZ8: =G8+S8+AE8+AK8+AQ8+AW8 -> 53791.0064 | BA8: =AZ8/AY8 -> 0.7945304478
A9: 2 | B9: ГБУЗ АО "Верхнетоемская ЦРБ" | C9: 0 | D9: 0 | O9: 10 | P9: 6 | Q9: 0.6 | R9: 13.86 | S9: 8.6728 | T9: 0.6257431457 | U9: 0 | V9: 0 | AA9: 0 | AB9: 0 | AG9: 0 | AH9: 0 | AM9: 350 | AN9: 281 | AO9: 0.8028571429 | AP9: 1268.65 | AQ9: 1060.29731 | AR9: =AQ9/AP9 -> 0.8357681867 | AS9: 1050 | AT9: 1086 | AU9: 1.034285714 | AV9: 4022.62 | AW9: 4022.62 | AX9: 1 | AY9: 5305.13 | AZ9: 5091.59011 | BA9: 0.9597484152
A10: 3 | B10: ГБУЗ АО «Виноградовская ЦРБ» | C10: 0 | D10: 0 | O10: 4230 | P10: 4212 | Q10: 0.9957446809 | R10: 3967.485 | S10: 3408.20913 | T10: 0.8590351646 | U10: 0 | V10: 0 | AA10: 1010 | AB10: 618 | AC10: =AB10/AA10 -> 0.6118811881 | AD10: 2636.55 | AE10: 1736.71533 | AF10: 0.6587075269 | AG10: 0 | AH10: 0 | AN10: 0 | AS10: 1000 | AT10: 701 | AU10: 0.701 | AV10: 3842.06 | AW10: 2806.36853 | AX10: 0.730433291 | AY10: 10446.095 | AZ10: 7951.29299 | BA10: 0.7611737199
A11: 4 | B11: ГБУЗ АО "Ильинская ЦРБ" | C11: 8 | D11: 2 | E11: =D11/C11 -> 0.25 | F11: 373.99 | G11: 99.53757 | H11: 0.2661503516 | O11: 1354 | P11: 1017 | Q11: 0.7511078287 | R11: 1292.01 | S11: 1002.24018 | T11: 0.7757216895 | U11: 0 | V11: 0 | AA11: 70 | AB11: 38 | AC11: 0.5428571429 | AD11: 195.84 | AE11: 109.27862 | AF11: 0.5579994894 | AG11: 0 | AH11: 0 | AM11: 180 | AN11: 157 | AO11: 0.8722222222 | AP11: 656.04 | AQ11: 594.83651 | AR11: =AQ11/AP11 -> 0.9067076855 | AS11: 0 | AT11: 0 | AY11: 2517.88 | AZ11: 1805.89288 | BA11: 0.7172275406
A12: 5 | B12: ГБУЗ АО «Каргопольская ЦРБ» | C12: 30 | D12: 31 | E12: 1.033333333 | F12: 1400.91 | G12: 1400.91 | H12: 1 | O12: 5295 | P12: 2760 | Q12: 0.5212464589 | R12: 5059.31 | S12: 2758.69955 | T12: 0.5452718948 | U12: 0 | V12: 0 | AA12: 585 | AB12: 446 | AC12: 0.7623931624 | AD12: 1563.335 | AE12: 1245.12781 | AF12: 0.7964561722 | AG12: 0 | AH12: 0 | AM12: 120 | AN12: 106 | AO12: 0.8833333333 | AP12: 436.88 | AQ12: 401.20043 | AR12: 0.9183309604 | AS12: 800 | AT12: 617 | AU12: 0.77125 | AV12: 4468.83 | AW12: 3587.65993 | AX12: 0.8028186192 | AY12: 12929.265 | AZ12: 9393.59772 | BA12: 0.7265376431
A13: 6 | B13: ГБУЗ АО «Карпогорская ЦРБ» | C13: 0 | D13: 0 | O13: 1318 | P13: 1135 | Q13: 0.8611532625 | R13: 1283.665 | S13: 1167.93514 | T13: 0.9098441883 | U13: 200 | V13: 50 | W13: =V13/U13 -> 0.25 | X13: 163.55 | Y13: 43.41021 | Z13: =Y13/X13 -> 0.2654247019 | AA13: 41 | AB13: 41 | AC13: 1 | AD13: 124.365 | AE13: 124.365 | AF13: 1 | AG13: 0 | AH13: 0 | AM13: 100 | AN13: 85 | AO13: 0.85 | AP13: 372.22 | AQ13: 329.40513 | AR13: 0.8849742894 | AS13: 2720 | AT13: 2237 | AU13: 0.8224264706 | AV13: 13712.73 | AW13: 11872.40613 | AX13: 0.8657944939 | AY13: 15492.98 | AZ13: 13494.1114 | BA13: 0.870982303
A14: 7 | B14: ГБУЗ АО «Коношская ЦРБ» | C14: 72 | D14: 18 | E14: 0.25 | F14: 3345.19 | G14: 880.29809 | H14: 0.2631533904 | O14: 6536 | P14: 5117 | Q14: 0.7828947368 | R14: 6135.235 | S14: 5000.23123 | T14: 0.8150023968 | U14: 0 | V14: 0 | AA14: 1826 | AB14: 983 | AC14: 0.5383351588 | AD14: 4941.21 | AE14: 2862.97881 | AF14: 0.5794084465 | AG14: 0 | AH14: 0 | AM14: 600 | AN14: 580 | AO14: 0.9666666667 | AP14: 2173.34 | AQ14: 2173.34 | AR14: 1 | AS14: 0 | AT14: 0 | AY14: 16594.975 | AZ14: 10916.84813 | BA14: 0.6578405891
A15: 8 | B15: ГБУЗ АО «Красноборская ЦРБ» | C15: 36 | D15: 1 | E15: 0.02777777778 | F15: 1669.63 | G15: 52.91479 | H15: 0.03169252469 | O15: 1254 | P15: 236 | Q15: 0.1881977671 | R15: 1160.15 | S15: 220.77035 | T15: 0.1902946602 | U15: 0 | V15: 0 | AA15: 209 | AB15: 28 | AC15: 0.1339712919 | AD15: 567.865 | AE15: 78.79091 | AF15: 0.1387493682 | AG15: 0 | AH15: 0 | AM15: 192 | AN15: 246 | AO15: 1.28125 | AP15: 694.23 | AQ15: 694.23 | AR15: 1 | AS15: 2920 | AT15: 2282 | AU15: 0.7815068493 | AV15: 11133.87 | AW15: 9061.01796 | AX15: 0.8138246594 | AY15: 15225.745 | AZ15: 10107.72401 | BA15: 0.6638574342
A16: 9 | B16: ГБУЗ АО «Лешуконская ЦРБ» | C16: 30 | D16: 24 | E16: 0.8 | F16: 1432.22 | G16: 1193.13325 | H16: 0.8330656254 | O16: 380 | P16: 281 | Q16: 0.7394736842 | R16: 373.49 | S16: 253.9444 | T16: 0.6799228895 | U16: 0 | V16: 0 | AA16: 32 | AB16: 11 | AC16: 0.34375 | AD16: 87.86 | AE16: 31.30541 | AF16: 0.3563101525 | AG16: 0 | AH16: 0 | AM16: 34 | AN16: 33 | AO16: 0.9705882353 | AP16: 129.25 | AQ16: 129.25 | AR16: 1 | AS16: 1650 | AT16: 1065 | AU16: 0.6454545455 | AV16: 6476.18 | AW16: 4355.86644 | AX16: 0.6725981118 | AY16: 8499 | AZ16: 5963.4995 | BA16: 0.701670726
A17: 10 | B17: ГБУЗ АО «Мезенская ЦРБ» | C17: 0 | D17: 0 | V17: 0 | AS17: 0 | AT17: 0 | AY17: 0 | AZ17: 0
A18: 11 | B18: ГБУЗ АО «Няндомская ЦРБ» | C18: 508 | D18: 418 | E18: 0.8228346457 | F18: 43920.32 | G18: 36357.98472 | H18: 0.8278169358 | O18: 10824 | P18: 6742 | Q18: 0.6228750924 | R18: 10581.69 | S18: 6835.13968 | T18: 0.6459402685 | U18: 504 | V18: 460 | W18: =V18/U18 -> 0.9126984127 | X18: 856.73 | Y18: 688.49357 | Z18: =Y18/X18 -> 0.8036295799 | AA18: 1775 | AB18: 1360 | AC18: 0.7661971831 | AD18: 4801.36 | AE18: 3487.81218 | AF18: 0.726421718 | AG18: 25 | AH18: 12 | AI18: =AH18/AG18 -> 0.48 | AJ18: 283.6 | AK18: 142.06413 | AL18: =AK18/AJ18 -> 0.500931347 | AM18: 1200 | AN18: 943 | AO18: 0.7858333333 | AP18: 4338.46 | AQ18: 3550.25794 | AR18: =AQ18/AP18 -> 0.8183221558 | AS18: 4640 | AT18: 3435 | AU18: 0.7403017241 | AV18: 20188.19 | AW18: 15823.8805 | AX18: 0.7838186831 | AY18: 84113.62 | AZ18: 66197.13915 | BA18: 0.7869966737
A19: 12 | B19: ГБУЗ АО «Онежская ЦРБ» | C19: 45 | D19: 33 | E19: 0.7333333333 | F19: 2088.53 | G19: 1595.27329 | H19: 0.7638258919 | O19: 5008 | P19: 4119 | Q19: 0.8224840256 | R19: 4684.97 | S19: 4000.18452 | T19: 0.85383354 | U19: 0 | V19: 0 | AA19: 480 | AB19: 403 | AC19: 0.8395833333 | AD19: 1329.35 | AE19: 1115.11291 | AF19: 0.8388407191 | AG19: 0 | AH19: 0 | AN19: 0 | AS19: 10000 | AT19: 7493 | AU19: 0.7493 | AV19: 38157.93 | AW19: 29777.74066 | AX19: 0.7803814478 | AY19: 46260.78 | AZ19: 36488.31138 | BA19: 0.788752619
A20: 13 | B20: ГБУЗ АО «Плесецкая ЦРБ» | C20: 437 | D20: 279 | E20: 0.6384439359 | F20: 35670.94 | G20: 24682.60145 | H20: 0.6919526497 | O20: 2480 | P20: 1526 | Q20: 0.6153225806 | R20: 2367.835 | S20: 1530.27472 | T20: 0.6462759103 | U20: 0 | V20: 0 | AA20: 1600 | AB20: 134 | AC20: 0.08375 | AD20: 4320.2 | AE20: 436.35993 | AF20: 0.1010045669 | AG20: 0 | AH20: 0 | AM20: 806 | AN20: 393 | AO20: 0.4875930521 | AP20: 2945.89 | AQ20: 1506.58115 | AR20: =AQ20/AP20 -> 0.5114179925 | AS20: 13200 | AT20: 8590 | AU20: 0.6507575758 | AV20: 57670.21 | AW20: 38226.09228 | AX20: 0.6628394847 | AY20: 102975.075 | AZ20: 66381.90953 | BA20: 0.6446405553
A21: 14 | B21: ГБУЗ АО «Приморская ЦРБ» | C21: 0 | D21: 0 | O21: 3644 | P21: 3065 | Q21: 0.8411086718 | R21: 4292.7 | S21: 3132.59179 | T21: 0.7297485941 | U21: 844 | V21: 570 | W21: =V21/U21 -> 0.6753554502 | X21: 1759.33 | Y21: 1154.53223 | Z21: =Y21/X21 -> 0.656234038 | AA21: 1050 | AB21: 672 | AC21: 0.64 | AD21: 2857.21 | AE21: 1903.14501 | AF21: 0.6660851005 | AG21: 0 | AH21: 0 | AN21: 0 | AS21: 12062 | AT21: 9404 | AU21: 0.7796385342 | AV21: 61128.37 | AW21: 49517.74807 | AX21: 0.8100616468 | AY21: 68278.28 | AZ21: 54553.48487 | BA21: 0.798987392
A22: 15 | B22: ГБУЗ АО «Устьянская ЦРБ» | C22: 65 | D22: 7 | E22: 0.1076923077 | F22: 3029.74 | G22: 356.87776 | H22: 0.1177915465 | O22: 11167 | P22: 7152 | Q22: 0.6404584938 | R22: 10514.095 | S22: 7029.33679 | T22: 0.6685631802 | U22: 0 | V22: 0 | W22: =V22/U22 ->  | Z22: =Y22/X22 ->  | AA22: 1473 | AB22: 1098 | AC22: 0.7454175153 | AD22: 4092.155 | AE22: 3058.66864 | AF22: 0.7474469173 | AG22: 0 | AH22: 0 | AM22: 271 | AN22: 286 | AO22: 1.055350554 | AP22: 984.8 | AQ22: 984.8 | AR22: =AQ22/AP22 -> 1 | AS22: 1100 | AT22: 1158 | AU22: 1.052727273 | AV22: 4215.31 | AW22: 4215.31 | AX22: 1 | AY22: 22836.1 | AZ22: 15644.99319 | BA22: 0.6850991715
A23: 16 | B23: ГБУЗ АО «Холмогорская ЦРБ» | C23: 15 | D23: 5 | E23: 0.3333333333 | F23: 703.91 | G23: 248.79989 | H23: 0.3534541206 | O23: 2751 | P23: 2278 | Q23: 0.8280625227 | R23: 2556.14 | S23: 2184.6613 | T23: 0.8546720054 | U23: 0 | V23: 0 | AA23: 658 | AB23: 503 | AC23: 0.76443769 | AD23: 1730.785 | AE23: 1390.56691 | AF23: 0.803431339 | AG23: 0 | AH23: 0 | AN23: 0 | AS23: 1020 | AT23: 0 | AU23: 0 | AV23: 5725.89 | AW23: 0 | AX23: 0 | AY23: 10716.725 | AZ23: 3824.0281 | BA23: 0.3568280515
A24: 17 | B24: ГБУЗ АО «Шенкурская ЦРБ им. Н.Н. Приорова» | C24: 0 | D24: 0 | O24: 555 | P24: 508 | Q24: =P24/O24 -> 0.9153153153 | R24: 508.51 | S24: 428.62167 | T24: 0.8428972292 | U24: 0 | V24: 0 | AA24: 90 | AB24: 48 | AC24: 0.5333333333 | AD24: 234.495 | AE24: 134.15532 | AF24: 0.5721031152 | AG24: 0 | AH24: 0 | AM24: 8 | AN24: 8 | AO24: 1 | AP24: 30.385 | AQ24: 30.385 | AR24: =AQ24/AP24 -> 1 | AS24: 0 | AT24: 0 | AY24: 773.39 | AZ24: 593.16199 | BA24: 0.7669636147
A25: 18 | B25: ГБУЗ АО «Яренская ЦРБ» | C25: 25 | D25: 11 | E25: 0.44 | F25: 1159.36 | G25: 532.63581 | H25: 0.4594222761 | O25: 3775 | P25: 2326 | Q25: 0.6161589404 | R25: 3578.795 | S25: 2298.91309 | T25: 0.6423707114 | U25: 0 | V25: 0 | AA25: 507 | AB25: 226 | AC25: 0.4457593688 | AD25: 1433.34 | AE25: 662.8869 | AF25: 0.4624770815 | AG25: 0 | AH25: 0 | AM25: 250 | AN25: 254 | AO25: 1.016 | AP25: 903.87 | AQ25: 903.87 | AR25: =AQ25/AP25 -> 1 | AS25: 1800 | AT25: 1260 | AU25: 0.7 | AV25: 7903.65 | AW25: 5392.82067 | AX25: 0.6823202786 | AY25: 14979.015 | AZ25: 9791.12647 | BA25: 0.6536562297
A26: 19 | B26: ГБУЗ АО «Первая ГКБ им. Е.Е.Волосевич» | C26: 861 | D26: 600 | E26: 0.6968641115 | F26: =12119.78+L26 -> 235188.3989 | G26: =7540.16774+M26 -> 172707.4477 | H26: 0.7343365939 | I26: 601 | J26: 445 | K26: =J26/I26 -> 0.7404326123 | L26: 223068.6189 | M26: =ROUND(L26/I26*J26,2) -> 165167.28 | N26: =M26/L26 -> 0.7404326115 | O26: 240 | P26: 97 | Q26: 0.4041666667 | R26: 207.32 | S26: 87.88903 | T26: 0.4239293363 | U26: 0 | V26: 0 | AA26: 0 | AB26: 0 | AG26: 0 | AH26: 0 | AS26: 7300 | AT26: 5343 | AU26: 0.7319178082 | AV26: 27976.28 | AW26: 21326.43909 | AX26: 0.7623043196 | AY26: 263371.9989 | AZ26: 194121.7759 | BA26: 0.7370630769
A27: 20 | B27: ГБУЗ АО «АГКБ №4» | C27: 0 | D27: 0 | O27: 1034 | P27: 261 | Q27: 0.252417795 | R27: 982.22 | S27: 287.70688 | T27: 0.292914907 | U27: 1034 | V27: 261 | W27: =V27/U27 -> 0.252417795 | X27: 982.22 | Y27: 287.70688 | Z27: =Y27/X27 -> 0.292914907 | AA27: 0 | AB27: 0 | AG27: 0 | AH27: 0 | AS27: 4311 | AT27: 3498 | AU27: 0.8114126653 | AV27: 23949.71 | AW27: 20231.00517 | AX27: 0.8447286072 | AY27: 24931.93 | AZ27: 20518.71205 | BA27: 0.8229893173
A28: 21 | B28: ГБУЗ АО «АГКБ №6» | C28: 710 | D28: 511 | E28: 0.7197183099 | F28: 73651.13 | G28: 55216.85706 | H28: 0.749708213 | O28: 12781 | P28: 11221 | Q28: 0.8779438229 | R28: 19638.74 | S28: 17615.22708 | T28: 0.8969632003 | U28: 11100 | V28: 9924 | W28: =V28/U28 -> 0.8940540541 | X28: 18158.68 | Y28: 16425.95252 | Z28: =Y28/X28 -> 0.9045785553 | AA28: 0 | AB28: 0 | AG28: 76 | AH28: 42 | AI28: =AH28/AG28 -> 0.5526315789 | AJ28: 936.58 | AK28: 540.06182 | AL28: =AK28/AJ28 -> 0.5766318093 | AS28: 20400 | AT28: 15651 | AU28: 0.7672058824 | AV28: 113379.07 | AW28: 90578.30353 | AX28: 0.798897923 | AY28: 207605.52 | AZ28: 163950.4495 | BA28: 0.7897210512
A29: 22 | B29: ГБУЗ АО «АГКП №1» | C29: 0 | D29: 0 | O29: 2406 | P29: 1799 | Q29: 0.7477140482 | R29: 1955.32 | S29: 1522.69484 | T29: 0.7787445738 | U29: 1756 | V29: 1312 | W29: =V29/U29 -> 0.7471526196 | X29: 1395.74 | Y29: 1086.06501 | Z29: =Y29/X29 -> 0.7781284552 | AA29: 0 | AB29: 0 | AG29: 0 | AH29: 0 | AS29: 0 | AT29: 0 | AY29: 1955.32 | AZ29: 1522.69484 | BA29: 0.7787445738
A30: 23 | B30: ГБУЗ АО «АГКП №2» | C30: 0 | D30: 0 | O30: 4000 | P30: 3921 | Q30: 0.98025 | R30: 3649.72 | S30: 3596.07845 | T30: 0.9853025575 | U30: 500 | V30: 350 | W30: =V30/U30 -> 0.7 | X30: 395.67 | Y30: 288.51844 | Z30: =Y30/X30 -> 0.7291895772 | AA30: 0 | AB30: 0 | AG30: 0 | AH30: 0 | AS30: 0 | AT30: 0 | AY30: 3649.72 | AZ30: 3596.07845 | BA30: 0.9853025575
A31: 24 | B31: ГБУЗ АО «АГДП» | C31: 0 | D31: 0 | O31: 70 | P31: 49 | Q31: 0.7 | R31: 56.71 | S31: 41.07865 | T31: 0.724363428 | U31: 50 | V31: 39 | W31: =V31/U31 -> 0.78 | X31: 39.57 | Y31: 32.14772 | Z31: =Y31/X31 -> 0.8124265858 | AA31: 0 | AB31: 0 | AG31: 0 | AH31: 0 | AS31: 0 | AT31: 0 | AY31: 56.71 | AZ31: 41.07865 | BA31: 0.724363428
A32: 25 | B32: ГБУЗ АО «АОКССМП» | C32: 0 | D32: 0 | O32: 0 | P32: 0 | U32: 0 | V32: 0 | AA32: 0 | AB32: 0 | AG32: 0 | AH32: 0 | AM32: 33287 | AN32: 24832 | AO32: 0.7459969357 | AP32: 120138.4519 | AQ32: 93350.72241 | AR32: =AQ32/AP32 -> 0.7770261806 | AS32: 0 | AT32: 0 | AY32: 120138.4519 | AZ32: 93350.72241 | BA32: 0.7770261806
A33: 26 | B33: ГБУЗ АО «СГБ №1» | C33: 7 | D33: 2 | E33: 0.2857142857 | F33: 334.05 | G33: 99.84438 | H33: 0.2988905254 | O33: 57228 | P33: 22893 | Q33: 0.4000314531 | R33: 51205.73 | S33: 21528.10354 | T33: 0.4204237209 | U33: 673 | V33: 423 | W33: =V33/U33 -> 0.6285289747 | X33: 549.49 | Y33: 359.90821 | Z33: =Y33/X33 -> 0.6549859142 | AA33: 8700 | AB33: 5746 | AC33: 0.6604597701 | AD33: 23966.86 | AE33: 16666.76811 | AF33: 0.6954089151 | AG33: 0 | AH33: 0 | AN33: 0 | AS33: 4950 | AT33: 4513 | AU33: 0.9117171717 | AV33: 25312.07 | AW33: 23895.57087 | AX33: 0.9440385899 | AY33: 100818.71 | AZ33: 62190.2869 | BA33: 0.6168526348
A34: 27 | B34: ГБУЗ АО «СГКБ №2 СМП» | C34: 39 | D34: 15 | E34: 0.3846153846 | F34: 1860.9 | G34: 747.29804 | H34: 0.4015788274 | O34: 6178 | P34: 4609 | Q34: 0.7460343153 | R34: 10029.64 | S34: 7565.42751 | T34: 0.7543069851 | U34: 4230 | V34: 3188 | W34: =V34/U34 -> 0.7536643026 | X34: 8206.2 | Y34: 6180.87459 | Z34: =Y34/X34 -> 0.7531957045 | AA34: 150 | AB34: 113 | AC34: 0.7533333333 | AD34: 414.28 | AE34: 325.03744 | AF34: 0.7845839529 | AG34: 0 | AH34: 0 | AN34: 0 | AS34: 6800 | AT34: 5352 | AU34: 0.7870588235 | AV34: 38813.3 | AW34: 31813.92675 | AX34: 0.8196655979 | AY34: 51118.12 | AZ34: 40451.68974 | BA34: 0.7913375871
A35: 28 | B35: ГБУЗ АО «СГДКБ» | C35: 0 | D35: 0 | O35: 8970 | P35: 6505 | Q35: 0.7251950948 | R35: 9379.79 | S35: 7075.3982 | T35: 0.7543237322 | U35: 550 | V35: 440 | W35: =V35/U35 -> 0.8 | X35: 1270.36 | Y35: 990.73502 | Z35: =Y35/X35 -> 0.7798852451 | AA35: 120 | AB35: 81 | AC35: 0.675 | AD35: 334.97 | AE35: 235.63269 | AF35: 0.7034441592 | AG35: 0 | AH35: 0 | AN35: 0 | AS35: 1650 | AT35: 637 | AU35: 0.3860606061 | AV35: 7682.57 | AW35: 2989.39694 | AX35: 0.3891141818 | AY35: 17397.33 | AZ35: 10300.42783 | BA35: 0.592069463
A36: 29 | B36: ГБУЗ АО «Северодвинская ССМП» | C36: 0 | D36: 0 | O36: 0 | P36: 0 | U36: 0 | V36: 0 | AA36: 0 | AB36: 0 | AG36: 0 | AH36: 0 | AM36: 6346 | AN36: 4829 | AO36: 0.7609517806 | AP36: 23572.68 | AQ36: 18683.84803 | AR36: =AQ36/AP36 -> 0.7926060181 | AS36: 0 | AT36: 0 | AY36: 23572.68 | AZ36: 18683.84803 | BA36: 0.7926060181
A37: 30 | B37: ГБУЗ АО «Новодвинская ЦГБ» | C37: 30 | D37: 4 | E37: 0.1333333333 | F37: 1392.76 | G37: 197.5469 | H37: 0.1418384359 | O37: 6455 | P37: 3295 | Q37: 0.5104570101 | R37: 5980.19 | S37: 3108.24783 | T37: 0.5197573706 | U37: 1004 | V37: 598 | W37: =V37/U37 -> 0.5956175299 | X37: 797.48 | Y37: 495.28303 | Z37: =Y37/X37 -> 0.6210601269 | AA37: 6300 | AB37: 1169 | AC37: 0.1855555556 | AD37: 16956.14 | AE37: 3349.04606 | AF37: 0.1975122911 | AG37: 0 | AH37: 0 | AN37: 0 | AS37: 2040 | AT37: 1669 | AU37: 0.8181372549 | AV37: 11329.18 | AW37: 9649.43849 | AX37: 0.8517331784 | AY37: 35658.27 | AZ37: 16304.27928 | BA37: 0.4572369686
A38: 31 | B38: ГБУЗ АО «Коряжемская ГБ» | C38: 240 | D38: 176 | E38: 0.7333333333 | F38: 32699.94 | G38: 25123.20253 | H38: 0.7682950651 | O38: 20385 | P38: 15624 | Q38: 0.7664459161 | R38: =19967.385-49.73 -> 19917.655 | S38: 15760.01112 | T38: 0.7912583645 | U38: 986 | V38: 822 | W38: =V38/U38 -> 0.8336713996 | X38: =1543.24+14.09 -> 1557.33 | Y38: 1145.8014 | Z38: =Y38/X38 -> 0.7357473368 | AA38: 1250 | AB38: 908 | AC38: 0.7264 | AD38: =3140.855+49.73 -> 3190.585 | AE38: 2283.58683 | AF38: 0.7157266865 | AG38: 419 | AH38: 327 | AI38: =AH38/AG38 -> 0.7804295943 | AJ38: 5039.45 | AK38: 4098.36417 | AL38: =AK38/AJ38 -> 0.8132562422 | AM38: 800 | AN38: 725 | AO38: 0.90625 | AP38: 2907.18 | AQ38: 2739.44231 | AR38: =AQ38/AP38 -> 0.9423022689 | AS38: 4740 | AT38: 4176 | AU38: 0.8810126582 | AV38: 20640.37 | AW38: 18751.32699 | AX38: 0.908478239 | AY38: 84395.18 | AZ38: 68755.93395 | BA38: 0.8146902933
A39: 32 | B39: ГБУЗ АО «Котласская ЦГБ» | C39: 30 | D39: 26 | E39: 0.8666666667 | F39: 1392.14 | G39: 1255.86078 | H39: 0.9021081069 | O39: 21299 | P39: 14644 | Q39: 0.6875440162 | R39: 21106.56 | S39: 15075.93578 | T39: 0.7142772569 | U39: 2859 | V39: 2365 | W39: =V39/U39 -> 0.827212312 | X39: 4817.93 | Y39: 3508.40963 | Z39: =Y39/X39 -> 0.7281985479 | AA39: 2360 | AB39: 1462 | AC39: 0.6194915254 | AD39: 6624.02 | AE39: 4384.52551 | AF39: 0.6619130845 | AG39: 102 | AH39: 102 | AI39: =AH39/AG39 -> 1 | AJ39: 5134.9 | AK39: 5134.9 | AL39: =AK39/AJ39 -> 1 | AM39: 2050 | AN39: 1785 | AO39: 0.8707317073 | AP39: 7416.56 | AQ39: 6721.80731 | AR39: =AQ39/AP39 -> 0.9063241328 | AS39: 10674 | AT39: 8285 | AU39: 0.7761851227 | AV39: 49475.14 | AW39: 40166.5441 | AX39: 0.811853066 | AY39: 91149.32 | AZ39: 72739.57348 | BA39: 0.7980265073
A40: 33 | B40: ГБУЗ АО «Мирнинская ЦГБ» | C40: 35 | D40: 32 | E40: 0.9142857143 | F40: 1621.36 | G40: 1543.27893 | H40: 0.9518422374 | O40: 7112 | P40: 4616 | Q40: 0.6490438695 | R40: 6686.355 | S40: 4519.41832 | T40: 0.6759165973 | U40: 300 | V40: 25 | W40: =V40/U40 -> 0.08333333333 | X40: 237.94 | Y40: 21.18441 | Z40: =Y40/X40 -> 0.08903257124 | AA40: 1515 | AB40: 984 | AC40: 0.6495049505 | AD40: 3948.955 | AE40: 2631.38575 | AF40: 0.6663498951 | AG40: 0 | AH40: 0 | AM40: 350 | AN40: 245 | AO40: 0.7 | AP40: 1264.06 | AQ40: 921.78056 | AR40: =AQ40/AP40 -> 0.7292221572 | AS40: 600 | AT40: 413 | AU40: 0.6883333333 | AV40: 3324.9 | AW40: 2384.2918 | AX40: 0.7171018076 | AY40: 16845.63 | AZ40: 12000.15536 | BA40: 0.7123601409
A41: 34 | B41: ГБУЗ АО «АОКБ» | C41: 532 | D41: 369 | E41: 0.6936090226 | F41: =9131.26+L41 -> 124203.4511 | G41: =4548.0072+M41 -> 98759.1572 | H41: 0.795140202 | I41: 342 | J41: 280 | K41: =J41/I41 -> 0.8187134503 | L41: 115072.1911 | M41: =ROUND(L41/I41*J41,2) -> 94211.15 | N41: =M41/L41 -> 0.818713445 | O41: 2292 | P41: 1259 | Q41: 0.5493019197 | R41: 4530.62 | S41: 2416.66827 | T41: 0.5334078493 | U41: 0 | V41: 0 | AA41: 109 | AB41: 73 | AC41: 0.6697247706 | AD41: 287.29 | AE41: 200.33549 | AF41: 0.6973284486 | AG41: 230 | AH41: 104 | AI41: =AH41/AG41 -> 0.452173913 | AJ41: 4176.6 | AK41: 2010.53305 | AL41: =AK41/AJ41 -> 0.4813803213 | AM41: 1890 | AN41: 1724 | AO41: 0.9121693122 | AP41: 22981.93 | AQ41: 21447.62079 | AR41: =AQ41/AP41 -> 0.9332384526 | AS41: 1825 | AT41: 1188 | AU41: 0.6509589041 | AV41: 7441.98 | AW41: 4926.97763 | AX41: 0.6620519848 | AY41: 163621.8711 | AZ41: 129761.2924 | BA41: 0.7930559134
A42: 35 | B42: ГБУЗ АО «АОДКБ» | C42: 18 | D42: 13 | E42: 0.7222222222 | F42: 833.01 | G42: 626.68261 | H42: 0.7523110287 | O42: 1955 | P42: 1492 | Q42: 0.7631713555 | R42: 6538.96 | S42: 5077.40484 | T42: 0.7764850741 | U42: 1100 | V42: 755 | W42: =V42/U42 -> 0.6863636364 | X42: 4359.45 | Y42: 3117.29858 | Z42: =Y42/X42 -> 0.7150669419 | AA42: 3 | AB42: 1 | AC42: 0.3333333333 | AD42: 7.78 | AE42: 2.70893 | AF42: 0.3481915167 | AG42: 0 | AH42: 0 | AS42: 4900 | AT42: 3812 | AU42: 0.7779591837 | AV42: 48083.81 | AW42: 38068.99079 | AX42: 0.7917215959 | AY42: 55463.56 | AZ42: 43775.78717 | BA42: 0.7892711389
A43: 36 | B43: ГБУЗ АО «АКПБ» | C43: 5790 | D43: 4184 | E43: 0.7226252159 | F43: 1035385.23 | G43: 780064.4781 | H43: 0.7534050665 | O43: 148054 | P43: 57335 | Q43: 0.387257352 | R43: 111429.36 | S43: 45451.58421 | T43: 0.407895946 | U43: 0 | V43: 0 | AA43: 37467 | AB43: 17341 | AC43: 0.4628339606 | AD43: 88497.16 | AE43: 46461.24024 | AF43: 0.525002613 | AG43: 2088 | AH43: 643 | AI43: =AH43/AG43 -> 0.3079501916 | AJ43: 32545.34 | AK43: 10508.48202 | AL43: =AK43/AJ43 -> 0.3228874555 | AS43: 0 | AT43: 0 | AY43: 1267857.09 | AZ43: 882485.7845 | BA43: 0.6960451548
A44: 37 | B44: ГАУЗ АО «АКОБ» | C44: 16 | D44: 16 | E44: 1 | F44: =L44 -> 2769.50191 | G44: =M44 -> 2769.5 | H44: 0.9999993103 | I44: 16 | J44: 16 | K44: =J44/I44 -> 1 | L44: 2769.50191 | M44: =ROUND(L44/I44*J44,2) -> 2769.5 | N44: =M44/L44 -> 0.9999993103 | O44: 0 | P44: 0 | U44: 0 | V44: 0 | AA44: 0 | AB44: 0 | AG44: 0 | AH44: 0 | AS44: 0 | AT44: 0 | AY44: 2769.50191 | AZ44: 2769.5 | BA44: 0.9999993103
A45: 38 | B45: ГБУЗ АО «АЦЛФ и СМ» | C45: 0 | D45: 0 | O45: 197877 | P45: 148757 | Q45: 0.7517649853 | R45: 156173.69 | S45: 122287.7004 | T45: 0.783023699 | U45: 0 | V45: 0 | AA45: 0 | AB45: 0 | AG45: 0 | AH45: 0 | AS45: 0 | AT45: 0 | AY45: 156173.69 | AZ45: 122287.7004 | BA45: 0.783023699
A46: 39 | B46: ГБУЗ АО «АКОД» | C46: 35 | D46: 35 | E46: 1 | F46: =L46 -> 9979.78813 | G46: =M46 -> 9979.79 | H46: 1.000000187 | I46: 35 | J46: 35 | K46: =J46/I46 -> 1 | L46: 9979.78813 | M46: =ROUND(L46/I46*J46,2) -> 9979.79 | N46: =M46/L46 -> 1.000000187 | O46: 0 | P46: 0 | U46: 0 | V46: 0 | AA46: 0 | AB46: 0 | AG46: 0 | AH46: 0 | AS46: 0 | AT46: 0 | AY46: 9979.78813 | AZ46: 9979.79 | BA46: 1.000000187
A47: 40 | B47: ГАУЗ АО «АККВД» | C47: 200 | D47: 183 | E47: 0.915 | F47: 16585.44 | G47: 15804.052 | H47: 0.9528871106 | O47: 15734 | P47: 10211 | Q47: 0.6489767383 | R47: 35798.18 | S47: 26210.08012 | T47: 0.7321623647 | U47: 0 | V47: 0 | AA47: 14009 | AB47: 8290 | AC47: 0.5917624384 | AD47: 48412.48 | AE47: 32156.40813 | AF47: 0.6642173285 | AG47: 0 | AH47: 0 | AS47: 0 | AT47: 0 | AY47: 100796.1 | AZ47: 74170.54025 | BA47: 0.735847322
A48: 41 | B48: ГБУЗ АО «ГВВ» | C48: 3187 | D48: 2371 | E48: 0.7439598368 | F48: 274486.61 | G48: 212629.8331 | H48: 0.7746455577 | O48: 0 | P48: 0 | U48: 0 | V48: 0 | AA48: 0 | AB48: 0 | AG48: 0 | AH48: 0 | AS48: 3300 | AT48: 2459 | AU48: 0.7451515152 | AV48: 18469.54 | AW48: 14329.98686 | AX48: 0.775871346 | AY48: 292956.15 | AZ48: 226959.8199 | BA48: 0.774722838
A49: 42 | B49: ГБУЗ АО «АКПТД» | C49: 400 | D49: 297 | E49: 0.7425 | F49: 113276.81 | G49: 87598.10794 | H49: 0.7733101589 | O49: 61749 | P49: 42549 | Q49: 0.6890637905 | R49: 45716.99 | S49: 32822.51794 | T49: 0.7179501087 | U49: 0 | V49: 0 | AA49: 32230 | AB49: 21231 | AC49: 0.6587340987 | AD49: 76499.36 | AE49: 52518.91689 | AF49: 0.6865275329 | AG49: 290 | AH49: 221 | AI49: =AH49/AG49 -> 0.7620689655 | AJ49: 22094.4 | AK49: 17533.76443 | AL49: =AK49/AJ49 -> 0.7935840951 | AS49: 6045 | AT49: 4399 | AU49: 0.7277088503 | AV49: 25385.25 | AW49: 19381.02289 | AX49: 0.7634757542 | AY49: 282972.81 | AZ49: 209854.3301 | BA49: 0.7416059871
A50: 43 | B50: ГБУЗ АО «КПНД» | C50: 0 | D50: 0 | O50: 0 | P50: 0 | U50: 0 | V50: 0 | AA50: 0 | AB50: 0 | AG50: 0 | AH50: 0 | AS50: 0 | AT50: 0 | AY50: 0 | AZ50: 0
A51: 44 | B51: ГБУЗ АО «СПНД» | C51: 1223 | D51: 1037 | E51: 0.8479149632 | F51: 201267.4 | G51: 174532.5483 | H51: 0.8671675011 | O51: 44794 | P51: 22682 | Q51: 0.5063624593 | R51: 34858.54 | S51: 18515.08221 | T51: 0.5311491018 | U51: 0 | V51: 0 | AA51: 19122 | AB51: 9419 | AC51: 0.4925739985 | AD51: 46525.33 | AE51: 23938.04186 | AF51: 0.5145163261 | AG51: 558 | AH51: 211 | AI51: =AH51/AG51 -> 0.3781362007 | AJ51: 8806.21 | AK51: 3478.75955 | AL51: =AK51/AJ51 -> 0.3950348163 | AS51: 0 | AT51: 0 | AY51: 291457.48 | AZ51: 220464.4319 | BA51: 0.7564205658
A52: 45 | B52: ГБУЗ АО «Санаторий «Сольвычегодск» | C52: 0 | D52: 0 | O52: 0 | P52: 0 | U52: 0 | V52: 0 | AA52: 0 | AB52: 0 | AG52: 0 | AH52: 0 | AS52: 0 | AT52: 0 | AY52: 0 | AZ52: 0
A53: 46 | B53: ГБУЗ АО «Детский туберкулезный санаторий им. М.Н.Фаворской» | C53: 0 | D53: 0 | O53: 0 | P53: 0 | U53: 0 | V53: 0 | AA53: 0 | AB53: 0 | AG53: 0 | AH53: 0 | AS53: 0 | AT53: 0 | AY53: 0 | AZ53: 0
A54: 47 | B54: ГБУЗ АО «АСПК» | C54: 0 | D54: 0 | O54: 0 | P54: 0 | U54: 0 | V54: 0 | AA54: 0 | AB54: 0 | AG54: 0 | AH54: 0 | AS54: 0 | AT54: 0 | AY54: 0 | AZ54: 0
A55: 48 | B55: ГБУЗ АО «АЦМП» | C55: 0 | D55: 0 | O55: 0 | P55: 0 | U55: 0 | V55: 0 | AA55: 0 | AB55: 0 | AG55: 0 | AH55: 0 | AS55: 0 | AT55: 0 | AY55: 0 | AZ55: 0
A56: 49 | B56: ГБУЗ АО «БСМЭ» | C56: 0 | D56: 0 | O56: 0 | P56: 0 | U56: 0 | V56: 0 | AA56: 0 | AB56: 0 | AG56: 0 | AH56: 0 | AS56: 0 | AT56: 0 | AY56: 0 | AZ56: 0
A57: 50 | B57: ГБУЗ АО «МИАЦ» | C57: 0 | D57: 0 | O57: 0 | P57: 0 | U57: 0 | V57: 0 | AA57: 0 | AB57: 0 | AG57: 0 | AH57: 0 | AS57: 0 | AT57: 0 | AY57: 0 | AZ57: 0
A58: 51 | B58: ООО "СМП "ШАНС" | AM58: 176 | AN58: 122 | AO58: =AN58/AM58 -> 0.6931818182 | AP58: 660.572 | AQ58: =ROUND(AN58*3601.98/1000,2) -> 439.44 | AR58: =AQ58/AP58 -> 0.6652416391 | AY58: 660.572 | AZ58: 439.44 | BA58: 0.6652416391
B59: Итого | C59: =SUM(C8:C57) -> 14820 | D59: =SUM(D8:D57) -> 10852 | E59: 0.7322537112 | F59: =SUM(F8:F58) -> 2247467.94 | G59: =SUM(G8:G58) -> 1728186.217 | H59: =G59/F59 -> 0.7689481065 | I59: =SUM(I8:I57) -> 994 | J59: =SUM(J8:J57) -> 776 | K59: =J59/I59 -> 0.7806841046 | L59: =SUM(L8:L58) -> 350890.1 | M59: =SUM(M8:M58) -> 272127.72 | N59: =M59/L59 -> 0.7755354739 | O59: =SUM(O8:O57) -> 691324 | P59: =SUM(P8:P57) -> 423120 | Q59: 0.6120429784 | R59: =SUM(R8:R58) -> 614533.42 | S59: =SUM(S8:S58) -> 398747.6211 | T59: =S59/R59 -> 0.6488623859 | U59: =SUM(U8:U57) -> 28410 | V59: =SUM(V8:V57) -> 21891 | W59: =V59/U59 -> 0.7705385428 | X59: =SUM(X8:X58) -> 46916.39 | Y59: =SUM(Y8:Y58) -> 36346.44792 | Z59: =Y59/X59 -> 0.7747068332 | AA59: =SUM(AA8:AA57) -> 136371 | AB59: =SUM(AB8:AB57) -> 74577 | AC59: 0.5468684691 | AD59: =SUM(AD8:AD58) -> 350940.33 | AE59: =SUM(AE8:AE58) -> 206612.3522 | AF59: =AE59/AD59 -> 0.5887392656 | AG59: =SUM(AG8:AG57) -> 3788 | AH59: =SUM(AH8:AH57) -> 1662 | AI59: =AH59/AG59 -> 0.4387539599 | AJ59: =SUM(AJ8:AJ58) -> 79017.08 | AK59: =SUM(AK8:AK58) -> 43446.92917 | AL59: =AK59/AJ59 -> 0.5498422514 | AM59: =SUM(AM8:AM58) -> 49510 | AN59: =SUM(AN8:AN58) -> 37983 | AO59: =AN59/AM59 -> 0.7671783478 | AP59: =SUM(AP8:AP58) -> 195680.4589 | AQ59: =SUM(AQ8:AQ58) -> 157975.5997 | AR59: =AQ59/AP59 -> 0.8073141314 | AS59: =SUM(AS8:AS57) -> 139437 | AT59: =SUM(AT8:AT57) -> 105523 | AU59: =AT59/AS59 -> 0.7567790472 | AV59: =SUM(AV8:AV58) -> 685379.96 | AW59: =SUM(AW8:AW58) -> 538497.1218 | AX59: =AW59/AV59 -> 0.785691373 | AY59: =SUM(AY8:AY58) -> 4173019.189 | AZ59: =SUM(AZ8:AZ58) -> 3073465.841 | BA59: =AZ59/AY59 -> 0.7365089164
AV61: =AV59*1000-'[1]МАШЕ (2)'!$E$40 -> 0
X62: =X59*1000-'[1]МАШЕ (2)'!$E$12-'[1]МАШЕ (2)'!$E$14 -> 0 | AD62: =AD59*1000-'[1]МАШЕ (2)'!$E$8 -> 0 | AJ62: =AJ59*1000-'[1]МАШЕ (2)'!$E$22 -> 0
